fUSD/lending_fUSD_20250421
["ID","MTS","AMOUNT","RATE_DAILY","PERIOD"]
[358577525,1745273513403,-500.0,0.00047671,7]
[358577526,1745273513419,-2454.44,0.00047671,7]
[358577527,1745273513429,-500.0,0.00047671,7]
[358577528,1745273513439,-500.0,0.00047671,7]
[358577529,1745273513448,-951.19,0.00047671,7]
[358577530,1745273513458,-500.0,0.00047671,7]
[358577531,1745273513468,-500.0,0.00047671,7]
[358577532,1745273513477,-500.0,0.00047671,7]
[358577533,1745273513488,-500.0,0.00047671,7]
[358577534,1745273513498,-500.0,0.00047671,7]
[358577535,1745273513507,-500.0,0.00047671,7]
[358577536,1745273513517,-500.0,0.00047671,7]
[358577537,1745273513527,-500.0,0.00047671,7]
[358577538,1745273513536,-500.0,0.00047671,7]
[358577539,1745273513545,-1772.65,0.00047671,7]
[358577540,1745273513554,-500.0,0.00047671,7]
[358577541,1745273513564,-500.0,0.00047671,7]
[358577542,1745273513574,-1520.58,0.00047671,7]
[358577543,1745273513585,-500.0,0.00047671,7]
[358577544,1745273513596,-500.0,0.00047671,30]
[358577545,1745273513605,-1100.31,0.00047671,7]
[358577546,1745273513615,-500.0,0.00047671,7]
[358577547,1745273513625,-1134.03,0.00047671,7]
[358577548,1745273513634,-2906.42,0.00047671,7]
[358577549,1745273513643,-500.0,0.00047671,7]
[358577550,1745273513652,-765.04,0.00047671,7]
[358577551,1745273513662,-500.0,0.00047671,7]
[358577552,1745273513671,-658.02,0.00047671,7]
[358577553,1745273513680,-500.0,0.00047671,7]
[358577554,1745273513690,-500.0,0.00047671,7]
[358577555,1745273513700,-702.96,0.00047671,7]
[358577556,1745273513709,-500.0,0.00047671,7]
[358577557,1745273513719,-687.2,0.00047671,7]
[358577558,1745273513728,-500.0,0.00047671,7]
[358577559,1745273513738,-1543.41,0.00047671,7]
[358577560,1745273513748,-1256.12,0.00047671,7]
[358577561,1745273513757,-500.0,0.00047671,7]
[358577562,1745273513767,-500.0,0.00047671,7]
[358577563,1745273513778,-621.72,0.00047671,7]
[358577564,1745273513787,-500.0,0.00047671,7]
[358577565,1745273513798,-500.0,0.00047671,7]
[358577566,1745273513807,-506.68,0.00047671,7]
[358577567,1745273513817,-500.0,0.00047671,7]
[358577568,1745273513826,-1317.58,0.00047671,7]
[358577569,1745273513835,-500.0,0.00047671,7]
[358577570,1745273513844,-500.0,0.00047671,7]
[358577571,1745273513854,-685.99,0.00047671,7]
[358577572,1745273513864,-821.12,0.00047671,7]
[358577573,1745273513873,-797.08,0.00047671,7]
[358577574,1745273513883,-1948.41,0.00047671,7]
[358577575,1745273513893,-1659.14,0.00047671,7]
[358577576,1745273513902,-1048.75,0.00047671,7]
[358577577,1745273513912,-1221.11,0.00047671,7]
[358577578,1745273513921,-500.0,0.00047671,7]
[358577579,1745273513931,-1335.52,0.00047671,7]
[358577580,1745273513940,-500.0,0.00047671,7]
[358577581,1745273513950,-500.0,0.00047671,7]
[358577582,1745273513959,-816.95,0.00047671,7]
[358577583,1745273513969,-672.04,0.00047671,7]
[358577584,1745273513978,-500.0,0.00047671,7]
[358577585,1745273513988,-1122.27,0.00047671,7]
[358577586,1745273513997,-500.0,0.00047671,7]
[358577587,1745273514007,-500.0,0.00047671,7]
[358577588,1745273514016,-583.75,0.00047671,7]
[358577589,1745273514026,-762.02,0.00047671,7]
[358577590,1745273514036,-941.01,0.00047671,7]
[358577591,1745273514045,-500.0,0.00047671,7]
[358577592,1745273514055,-500.0,0.00047671,7]
[358577593,1745273514064,-366.84855191,0.00047671,7]
[358577594,1745273514074,-243.25461827,0.00047671,7]
[358577595,1745273514083,-500.0,0.00047671,7]
[358577596,1745273514093,-500.0,0.00047671,7]
[358577597,1745273514103,-500.0,0.00047671,7]
[358577598,1745273514113,-500.0,0.00047671,7]
[358577599,1745273514122,-500.0,0.00047671,7]
[358577600,1745273514133,-500.0,0.00047671,7]
[358577601,1745273514143,-500.0,0.00047671,7]
[358577602,1745273514154,-500.0,0.00047671,7]
[358577603,1745273514163,-349.96829231,0.00047671,7]
[358577604,1745273514172,-500.0,0.00047671,7]
[358577605,1745273514182,-500.0,0.00047671,7]
[358577606,1745273514192,-500.0,0.00047671,7]
[358577607,1745273514202,-1158.5,0.00047671,7]
[358577608,1745273514211,-772.47,0.00047671,7]
[358577609,1745273514221,-500.0,0.00047671,7]
[358577610,1745273514231,-500.0,0.00047671,7]
[358577611,1745273514241,-500.0,0.00047671,7]
[358577612,1745273514251,-500.0,0.00047671,7]
[358577613,1745273514261,-500.0,0.00047671,7]
[358577614,1745273514271,-583.01,0.00047671,7]
[358577615,1745273514281,-500.0,0.00047671,7]
[358577616,1745273514291,-500.0,0.00047671,7]
[358577617,1745273514300,-500.0,0.00047671,7]
[358577618,1745273514310,-500.0,0.00047671,7]
[358577619,1745273514319,-500.0,0.00047671,7]
[358577620,1745273514330,-973.17,0.00047671,7]
[358577621,1745273514341,-500.0,0.00047671,7]
[358577622,1745273514351,-500.0,0.00047671,7]
[358577623,1745273514360,-867.69,0.00047671,7]
[358577624,1745273514369,-901.45,0.00047671,7]
[358577625,1745273514379,-1047.72,0.00047671,7]
[358577626,1745273514388,-996.82,0.00047671,7]
[358577627,1745273514399,-1136.8,0.00047671,7]
[358577628,1745273514411,-1393.67,0.00047671,7]
[358577629,1745273514422,-919.49,0.00047671,7]
[358577630,1745273514431,-1952.74,0.00047671,7]
[358577631,1745273514440,-500.0,0.00047671,2]
[358577632,1745273514450,-500.0,0.00047671,7]
[358577633,1745273514459,-3067.74,0.00047671,7]
[358577634,1745273514469,-500.0,0.00047671,7]
[358577635,1745273514478,-1668.15,0.00047671,7]
[358577636,1745273514488,-500.0,0.00047671,7]
[358577637,1745273514497,-1022.68,0.00047671,7]
[358577638,1745273514507,-500.0,0.00047671,7]
[358577639,1745273514516,-500.0,0.00047671,7]
[358577640,1745273514526,-662.83,0.00047671,7]
[358577641,1745273514535,-500.0,0.00047671,7]
[358577642,1745273514613,-500.0,0.00047671,7]
[358577643,1745273514623,-1574.74,0.00047671,7]
[358577644,1745273514632,-500.0,0.00047671,7]
[358577645,1745273514642,-1020.13,0.00047671,7]
[358577646,1745273514651,-574.9,0.00047671,7]
[358577647,1745273514662,-981.52,0.00047671,7]
[358577648,1745273514671,-956.86,0.00047671,7]
[358577649,1745273514680,-500.0,0.00047671,7]
[358577650,1745273514690,-673.68,0.00047671,7]
[358577651,1745273514699,-500.0,0.00047671,7]
[358577652,1745273514709,-1117.56,0.00047671,7]
[358577653,1745273514718,-500.0,0.00047671,7]
[358577654,1745273514728,-500.0,0.00047671,7]
[358577655,1745273514737,-500.0,0.00047671,7]
[358577656,1745273514747,-1471.8,0.00047671,7]
[358577657,1745273514757,-500.0,0.00047671,7]
[358577658,1745273514767,-1910.22,0.00047671,7]
[358577659,1745273514777,-1450.05,0.00047671,7]
[358577660,1745273514787,-500.0,0.00047671,7]
[358577661,1745273514796,-500.0,0.00047671,7]
[358577662,1745273514806,-997.29,0.00047671,7]
[358577663,1745273514815,-500.0,0.00047671,7]
[358577664,1745273514825,-500.0,0.00047671,7]
[358577665,1745273514834,-525.77,0.00047671,7]
[358577666,1745273514844,-1056.06,0.00047671,7]
[358577667,1745273514854,-3115.83,0.00047671,7]
[358577668,1745273514863,-3275.5,0.00047671,7]
[358577669,1745273514873,-1074.12,0.00047671,7]
[358577670,1745273514882,-1721.58,0.00047671,7]
[358577671,1745273514891,-500.0,0.00047671,7]
[358577672,1745273514901,-300.0,0.00047671,7]
[358577673,1745273514910,-500.0,0.00047671,7]
[358577674,1745273514920,-500.0,0.00047671,7]
[358577675,1745273514930,-500.0,0.00047671,7]
[358577676,1745273514940,-500.0,0.00047671,7]
[358577677,1745273514950,-1422.93,0.00047671,7]
[358577678,1745273514959,-500.0,0.00047671,7]
[358577679,1745273514969,-500.0,0.00047671,7]
[358577680,1745273514978,-500.0,0.00047671,7]
[358577681,1745273514988,-834.44,0.00047671,7]
[358577682,1745273514998,-500.0,0.00047671,7]
[358577683,1745273515008,-743.09,0.00047671,7]
[358577684,1745273515017,-2831.35,0.00047671,7]
[358577685,1745273515029,-3209.48,0.00047671,7]
[358577686,1745273515038,-500.0,0.00047671,7]
[358577687,1745273515048,-500.0,0.00047671,7]
[358577688,1745273515058,-671.48,0.00047671,7]
[358577689,1745273515067,-500.0,0.00047671,7]
[358577690,1745273515077,-583.29,0.00047671,7]
[358577691,1745273515087,-500.0,0.00047671,7]
[358577692,1745273515096,-973.67,0.00047671,7]
[358577693,1745273515106,-1070.05,0.00047671,7]
[358577694,1745273515115,-1375.34,0.00047671,7]
[358577695,1745273515125,-500.0,0.00047671,7]
[358577696,1745273515135,-7001.07,0.00047671,7]
[358577697,1745273515144,-500.0,0.00047671,7]
[358577698,1745273515154,-2437.85,0.00047671,7]
[358577699,1745273515163,-500.0,0.00047671,7]
[358577700,1745273515172,-500.0,0.00047671,7]
[358577701,1745273515182,-2289.63,0.00047671,7]
[358577702,1745273515192,-1522.45,0.00047671,7]
[358577703,1745273515201,-500.0,0.00047671,7]
[358577704,1745273515211,-500.0,0.00047671,7]
[358577705,1745273515220,-274.417181,0.00047671,14]
[358577706,1745273515230,-829.97,0.00047671,7]
[358577707,1745273515239,-1573.28,0.00047671,7]
[358577708,1745273515250,-148396.62,0.00047671,7]
[358577709,1745273515260,-783.77,0.00047671,7]
[358577710,1745273515270,-274.417182,0.00047671,14]
[358577711,1745273515280,-500.0,0.00047671,7]
[358577712,1745273515289,-2454.7,0.00047671,7]
[358577713,1745273515298,-500.0,0.00047671,7]
[358577714,1745273515308,-549.44782998,0.00047671,7]
[358577715,1745273515317,-527.57,0.00047671,7]
[358577716,1745273515327,-612.25,0.00047671,7]
[358577717,1745273515336,-1343.12,0.00047671,7]
[358577718,1745273515345,-500.0,0.00047671,7]
[358577719,1745273515355,-2236.11,0.00047671,7]
[358577720,1745273515364,-500.0,0.00047671,7]
[358577721,1745273515374,-963.95,0.00047671,7]
[358577722,1745273515383,-997.67,0.00047671,7]
[358577723,1745273515392,-500.0,0.00047671,7]
[358577724,1745273515401,-1289.89,0.00047671,7]
[358577725,1745273515416,-655.96,0.00047671,7]
[358577726,1745273515425,-678.03,0.00047671,7]
[358577727,1745273515435,-569.75,0.00047671,7]
[358577728,1745273515445,-1596.74,0.00047671,7]
[358577729,1745273515456,-500.0,0.00047671,7]
[358577730,1745273515466,-3240.43,0.00047671,7]
[358577731,1745273515476,-500.0,0.00047671,7]
[358577732,1745273515486,-518.73,0.00047671,7]
[358577733,1745273515496,-209.126942,0.00047671,14]
[358577734,1745273515505,-500.0,0.00047671,7]
[358577735,1745273515514,-891.42,0.00047671,7]
[358577736,1745273515523,-511.37,0.00047671,7]
[358577737,1745273515533,-1959.65,0.00047671,7]
[358577738,1745273515543,-209.126942,0.00047671,14]
[358577739,1745273515552,-804.59,0.00047671,7]
[358577740,1745273515562,-2145.1,0.00047671,7]
[358577741,1745273515571,-500.0,0.00047671,7]
[358577742,1745273515581,-5109.84,0.00047671,7]
[358577743,1745273515590,-271.11443699,0.00047671,7]
[358577744,1745273515599,-500.0,0.00047671,7]
[358577745,1745273515609,-500.0,0.00047671,7]
[358577746,1745273515618,-561.55,0.00047671,7]
[358577747,1745273515628,-1484.19,0.00047671,7]
[358577748,1745273515637,-500.0,0.00047671,7]
[358577749,1745273515646,-1100.11,0.00047671,7]
[358577750,1745273515656,-859.56,0.00047671,7]
[358577751,1745273515665,-500.0,0.00047671,7]
[358577752,1745273515675,-574.2,0.00047671,7]
[358577753,1745273515684,-2581.69,0.00047671,7]
[358577754,1745273515693,-598.26690595,0.00047671,7]
[358577755,1745273515702,-596.37,0.00047671,7]
[358577756,1745273515711,-1348.97,0.00047671,7]
[358577757,1745273515721,-889.4,0.00047671,7]
[358577758,1745273515730,-948.97,0.00047671,7]
[358577759,1745273515739,-868.91,0.00047671,7]
[358577760,1745273515748,-500.0,0.00047671,7]
[358577761,1745273515757,-2009.27,0.00047671,7]
[358577762,1745273515768,-500.0,0.00047671,7]
[358577763,1745273515778,-717.21,0.00047671,7]
[358577764,1745273515787,-500.0,0.00047671,7]
[358577765,1745273515796,-1570.7,0.00047671,7]
[358577766,1745273515806,-500.0,0.00047671,7]
[358577767,1745273515816,-500.0,0.00047671,7]
[358577768,1745273515826,-151.0,0.00047671,14]
[358577769,1745273515835,-500.0,0.00047671,7]
[358577770,1745273515845,-1677.09,0.00047671,7]
[358577771,1745273515854,-1058.05,0.00047671,7]
[358577772,1745273515864,-500.0,0.00047671,7]
[358577773,1745273515874,-1248.18,0.00047671,7]
[358577774,1745273515884,-508.66,0.00047671,7]
[358577775,1745273515895,-500.0,0.00047671,7]
[358577776,1745273515905,-616.38,0.00047671,7]
[358577777,1745273515914,-2278.19,0.00047671,7]
[358577778,1745273515925,-1336.46,0.00047671,7]
[358577779,1745273515936,-2099.91,0.00047671,7]
[358577780,1745273515947,-500.0,0.00047671,7]
[358577781,1745273515959,-500.0,0.00047671,7]
[358577782,1745273515968,-500.0,0.00047671,7]
[358577783,1745273515978,-1053.78,0.00047671,7]
[358577784,1745273515988,-2998.83,0.00047671,7]
[358577785,1745273515998,-831.47,0.00047671,7]
[358577786,1745273516008,-500.0,0.00047671,7]
[358577787,1745273516018,-500.0,0.00047671,7]
[358577788,1745273516028,-1357.54,0.00047671,7]
[358577789,1745273516037,-743.94,0.00047671,7]
[358577790,1745273516048,-1579.09,0.00047671,7]
[358577791,1745273516058,-500.0,0.00047671,7]
[358577792,1745273516068,-2781.12,0.00047671,7]
[358577793,1745273516077,-1075.24,0.00047671,7]
[358577794,1745273516087,-592.06,0.00047671,7]
[358577795,1745273516096,-500.0,0.00047671,7]
[358577796,1745273516106,-575.54,0.00047671,7]
[358577797,1745273516116,-1561.76,0.00047671,7]
[358577798,1745273516126,-1637.73,0.00047671,7]
[358577799,1745273516137,-1456.28,0.00047671,7]
[358577800,1745273516147,-500.0,0.00047671,7]
[358577801,1745273516156,-2605.24,0.00047671,7]
[358577802,1745273516166,-853.74,0.00047671,7]
[358577803,1745273516176,-2212.34,0.00047671,7]
[358577804,1745273516186,-2220.57,0.00047671,7]
[358577805,1745273516196,-598.39,0.00047671,7]
[358577806,1745273516206,-901.27,0.00047671,7]
[358577807,1745273516216,-578.81,0.00047671,7]
[358577808,1745273516226,-500.0,0.00047671,7]
[358577809,1745273516236,-500.0,0.00047671,7]
[358577810,1745273516246,-1275.11,0.00047671,7]
[358577811,1745273516256,-500.0,0.00047671,7]
[358577812,1745273516267,-500.0,0.00047671,7]
[358577813,1745273516277,-2355.08,0.00047671,7]
[358577814,1745273516288,-500.0,0.00047671,7]
[358577815,1745273516298,-1605.45,0.00047671,7]
[358577816,1745273516308,-2547.52,0.00047671,7]
[358577817,1745273516318,-500.0,0.00047671,7]
[358577818,1745273516328,-500.0,0.00047671,7]
[358577819,1745273516337,-500.0,0.00047671,7]
[358577820,1745273516347,-1104.86,0.00047671,7]
[358577821,1745273516357,-2642.88,0.00047671,7]
[358577822,1745273516367,-737.39,0.00047671,7]
[358577823,1745273516377,-1339.26,0.00047671,7]
[358577824,1745273516387,-1748.44,0.00047671,2]
[358577825,1745273516396,-447.92797083,0.00047671,7]
[358577826,1745273516407,-662.24,0.00047671,7]
[358577827,1745273516418,-500.0,0.00047671,7]
[358577828,1745273516427,-500.0,0.00047671,7]
[358577829,1745273516437,-798.15,0.00047671,7]
[358577830,1745273516446,-1174.25,0.00047671,7]
[358577831,1745273516455,-500.0,0.00047671,7]
[358577832,1745273516465,-5495.09,0.00047671,7]
[358577833,1745273516474,-500.0,0.00047671,7]
[358577834,1745273516484,-500.0,0.00047671,7]
[358577835,1745273516493,-707.27,0.00047671,7]
[358577836,1745273516502,-150.0,0.00047672,120]
[358577837,1745273516512,-169.0586,0.00047681,3]
[358577838,1745273516523,-209.126942,0.00047743,14]
[358577839,1745273516532,-209.126936,0.00047743,14]
[358577840,1745273516541,-151.0,0.00047743,14]
[358577841,1745273516551,-374.65738446,0.00047744,2]
[358577842,1745273516560,-390.64263452,0.00047744,2]
[358577843,1745273516571,-201829.5778028,0.00047744,2]
[358577844,1745273516581,-122047.24770969,0.00047744,2]
[358577845,1745273516591,-1210.0,0.00047744,2]
[358577846,1745273516602,-703.53687433,0.00047744,2]
[358577847,1745273516612,-362.28774254,0.00047744,2]
[358577848,1745273516621,-348.42021509,0.00047744,2]
[358577849,1745273516631,-761.89830382,0.00047744,2]
[358577850,1745273516640,-22658.42886127,0.00047744,2]
[358577851,1745273516649,-1521.39396035,0.00047744,2]
[358577852,1745273516659,-1029.91062528,0.00047744,2]
[358577853,1745273516668,-5186.5683927,0.00047744,2]
[358577854,1745273516677,-2456.36582879,0.00047744,2]
[358577855,1745273516687,-4048.52589424,0.00047744,2]
[358577856,1745273516697,-2706.04883006,0.00047744,2]
[358577857,1745273516707,-215639.8310406,0.00047744,2]
[358577858,1745273516717,-151.35991214,0.00047744,2]
[358577859,1745273516727,-43949.52581287,0.00047744,2]
[358577860,1745273516736,-249.21880582,0.00047744,2]
[358577861,1745273516747,-164.47652187,0.00047744,2]
[358577862,1745273516756,-874.89358976,0.00047744,2]
[358577863,1745273516765,-1262.15570179,0.00047744,2]
[358577864,1745273516775,-7722.96806675,0.00047744,2]
[358577865,1745273516784,-25012.43566665,0.00047744,2]
[358577866,1745273516793,-1041.81269296,0.00047744,2]
[358577867,1745273516803,-31993.47702798,0.00047744,2]
[358577868,1745273516812,-595.00216533,0.00047744,2]
[358577869,1745273516822,-9237.2123098,0.00047744,2]
[358577870,1745273516831,-1312.06972897,0.00047744,2]
[358577871,1745273516841,-3420.07966712,0.00047744,2]
[358577872,1745273516851,-77017.27984277,0.00047744,2]
[358577873,1745273516860,-12836.14189209,0.00047744,2]
[358577874,1745273516870,-1920.83601461,0.00047744,2]
[358577875,1745273516880,-184.12926111,0.00047744,2]
[358577876,1745273516889,-5021.18496455,0.00047744,2]
[358577877,1745273516900,-643.0,0.00047744,2]
[358577878,1745273516910,-3100.0,0.00047744,5]
[358577879,1745273516919,-970.62857005,0.00047744,2]
[358577880,1745273516929,-8633.07853031,0.00047744,2]
[358577881,1745273516939,-18919.93348335,0.00047744,5]
[358577882,1745273516949,-25356.71773971,0.00047744,2]
[358577883,1745273516958,-573.41628295,0.00047744,2]
[358577884,1745273516968,-1836.92523053,0.00047744,2]
[358577885,1745273516978,-3243.44508073,0.00047744,2]
[358577886,1745273516989,-175.50296569,0.00047744,2]
[358577887,1745273516999,-154.53607032,0.00047744,2]
[358577888,1745273517009,-7086.63834552,0.00047744,2]
[358577889,1745273517019,-550.0,0.00047744,2]
[358577890,1745273517029,-1467.36168212,0.00047744,2]
[358577891,1745273517039,-1008.79014846,0.00047744,2]
[358577892,1745273517048,-10706.29090278,0.00047744,2]
[358577893,1745273517058,-803.6853053,0.00047744,2]
[358577894,1745273517068,-169869.17357222,0.00047744,2]
[358577895,1745273517078,-14958.15470669,0.00047744,2]
[358577896,1745273517088,-229.13967047,0.00047744,2]
[358577897,1745273517099,-173.89826213,0.00047744,2]
[358577898,1745273517109,-6000.0,0.00047744,2]
[358577899,1745273517119,-375.73680232,0.00047744,2]
[358577900,1745273517129,-1471.76610094,0.00047744,2]
[358577901,1745273517139,-1034.31705978,0.00047744,2]
[358577902,1745273517149,-563.6379465,0.00047744,2]
[358577903,1745273517159,-150.0,0.00047744,2]
[358577904,1745273517169,-7776.7013557,0.00047744,2]
[358577905,1745273517179,-626.84022381,0.00047744,2]
[358577906,1745273517189,-214.88586376,0.00047744,2]
[358577907,1745273517199,-164372.66910073,0.00047744,2]
[358577908,1745273517209,-450.61943176,0.00047744,2]
[358577909,1745273517218,-21300.11307699,0.00047744,2]
[358577910,1745273517228,-1068.55244829,0.00047744,2]
[358577911,1745273517238,-2500.0,0.00047744,2]
[358577912,1745273517248,-580.09342431,0.00047744,2]
[358577913,1745273517258,-342.67664304,0.00047744,2]
[358577914,1745273517267,-1417.26957483,0.00047744,2]
[358577915,1745273517279,-1100.0,0.00047744,2]
[358577916,1745273517290,-913.44537121,0.00047744,2]
[358577917,1745273517300,-482.25176803,0.00047744,2]
[358577918,1745273517310,-15606.7747249,0.00047744,2]
[358577919,1745273517319,-170.47257482,0.00047744,2]
[358577920,1745273517329,-229.8963557,0.00047744,2]
[358577921,1745273517338,-1588.26313176,0.00047744,2]
[358577922,1745273517348,-548.33562783,0.00047744,2]
[358577923,1745273517358,-5012.18512876,0.00047744,2]
[358577924,1745273517368,-1012.62220484,0.00047744,2]
[358577925,1745273517377,-365.10764552,0.00047744,2]
[358577926,1745273517387,-2207.36840906,0.00047744,2]
[358577927,1745273517397,-283.93439845,0.00047744,2]
[358577928,1745273517409,-14787.27097737,0.00047744,2]
[358577929,1745273517426,-1838.17337737,0.00047744,2]
[358577930,1745273517436,-1118.51046501,0.00047744,2]
[358577931,1745273517446,-24628.66305692,0.00047744,5]
[358577932,1745273517455,-2555.15190157,0.00047744,2]
[358577933,1745273517464,-14075.97248423,0.00047744,2]
[358577934,1745273517474,-220.48767346,0.00047744,2]
[358577935,1745273517484,-20255.99371999,0.00047744,2]
[358577936,1745273517493,-8151.94758946,0.00047744,2]
[358577937,1745273517503,-1706.98437153,0.00047744,2]
[358577938,1745273517513,-1431.72105575,0.00047744,2]
[358577939,1745273517523,-202.87870422,0.00047744,2]
[358577940,1745273517534,-282.83997125,0.00047744,2]
[358577941,1745273517544,-5686.47306901,0.00047744,2]
[358577942,1745273517554,-752.13991703,0.00047744,2]
[358577943,1745273517564,-1013.87347135,0.00047744,2]
[358577944,1745273517574,-162.91,0.00047744,2]
[358577945,1745273517583,-1107.86333272,0.00047744,2]
[358577946,1745273517593,-161.78932478,0.00047744,2]
[358577947,1745273517603,-2174.17014304,0.00047744,2]
[358577948,1745273517613,-872.83485502,0.00047744,2]
[358577949,1745273517623,-150.0,0.00047744,2]
[358577950,1745273517632,-30000.0,0.00047744,2]
[358577951,1745273517642,-7485.60398369,0.00047744,2]
[358577952,1745273517652,-99728.58721701,0.00047744,2]
[358577953,1745273517661,-1726.21607628,0.00047744,2]
[358577954,1745273517671,-900.26738191,0.00047744,2]
[358577955,1745273517681,-963.85274522,0.00047744,2]
[358577956,1745273517690,-10616.35194343,0.00047744,3]
[358577957,1745273517700,-7899.0254143,0.00047744,7]
[358577958,1745273517709,-3696.68632888,0.00047744,7]
[358577959,1745273517719,-8568.27115003,0.00047744,7]
[358577960,1745273517728,-14864.84641832,0.00047744,3]
[358577961,1745273517738,-28062.3475986,0.00047744,3]
[358577962,1745273517747,-51697.35265979,0.00047744,7]
[358577963,1745273517757,-5067.33906191,0.00047744,7]
[358577964,1745273517766,-3586.08861656,0.00047744,7]
[358577965,1745273517776,-184542.46125916,0.00047744,7]
[358577966,1745273517785,-4850.05403964,0.00047744,10]
[358577967,1745273517795,-14818.56223194,0.00047744,7]
[358577968,1745273517805,-19002.41897915,0.00047744,3]
[358577969,1745273517814,-2304.69824312,0.00047744,7]
[358577970,1745273517824,-150.0,0.00047744,2]
[358577971,1745273517834,-2267.57887974,0.00047744,10]
[358577972,1745273517844,-2274.99348107,0.00047744,14]
[358577973,1745273517854,-912.73,0.00047744,2]
[358577974,1745273517864,-159.73880046,0.00047744,2]
[358577975,1745273517873,-3000.0,0.00047744,2]
[358577976,1745273517883,-1000.0,0.00047744,2]
[358577977,1745273517893,-2115.33182775,0.00047744,16]
[358577978,1745273517903,-4972.0772553,0.00047744,7]
[358577979,1745273517912,-66540.32531361,0.00047744,7]
[358577980,1745273517922,-5395.71487055,0.00047744,2]
[358577981,1745273517931,-1000.0,0.00047744,2]
[358577982,1745273517941,-306.67383942,0.00047744,14]
[358577983,1745273517951,-150.0,0.00047744,14]
[358577984,1745273517961,-1227.98097811,0.00047744,120]
[358577985,1745273517971,-722.46997603,0.00047744,120]
[358577986,1745273517980,-268.96934257,0.00047744,30]
[358577987,1745273517990,-341.45584189,0.00047744,30]
[358577988,1745273518000,-193.40794082,0.00047744,30]
[358577989,1745273518010,-267.92874063,0.00047744,120]
[358577990,1745273518020,-1964.63112,0.00047744,30]
[358577991,1745273518030,-1212.13673198,0.00047744,120]
[358577992,1745273518040,-478.77604455,0.00047744,120]
[358577993,1745273518049,-1738.29145868,0.00047744,120]
[358577994,1745273518059,-772.47112136,0.00047744,120]
[358577995,1745273518069,-468.23858845,0.00047744,120]
[358577996,1745273518079,-218.64188372,0.00047744,120]
[358577997,1745273518089,-1945.0,0.00047744,30]
[358577998,1745273518260,-1208.84506801,0.00047744,30]
[358577999,1745273518289,-576.96819272,0.00047744,30]
[358578000,1745273518299,-1166.00981998,0.00047744,120]
[358578001,1745273518309,-722.11254679,0.00047744,60]
[358578002,1745273518318,-1070.0,0.00047744,30]
[358578003,1745273518327,-1086.46804086,0.00047744,30]
[358578004,1745273518337,-150.0,0.00047744,30]
[358578005,1745273518346,-207.0,0.00047744,30]
[358578006,1745273518355,-160.2,0.00047744,2]
[358578007,1745273518364,-1000.0,0.00047744,30]
[358578008,1745273518373,-50000.0,0.00047744,30]
[358578009,1745273518383,-50000.0,0.00047744,31]
[358578010,1745273518392,-50000.0,0.00047744,32]
[358578011,1745273518401,-50000.0,0.00047744,33]
[358578012,1745273518414,-50000.0,0.00047744,34]
[358578013,1745273518423,-200.0,0.00047744,30]
[358578014,1745273518433,-200.0,0.00047744,30]
[358578015,1745273518443,-200.0,0.00047744,30]
[358578016,1745273518452,-200.0,0.00047744,30]
[358578017,1745273518461,-200.0,0.00047744,30]
[358578018,1745273518471,-200.0,0.00047744,30]
[358578019,1745273518481,-200.0,0.00047744,30]
[358578020,1745273518491,-200.0,0.00047744,30]
[358578021,1745273518503,-200.0,0.00047744,30]
[358578022,1745273518515,-200.0,0.00047744,30]
[358578023,1745273518525,-200.0,0.00047744,30]
[358578024,1745273518534,-200.0,0.00047744,30]